fUST/lending_fUST_20241128
["ID","MTS","AMOUNT","RATE_DAILY","PERIOD"]
[343595734,1732741835197,-500.0,0.00028899,2]
[343595735,1732741835209,-236.07286137,0.00028899,2]
[343595736,1732741835218,-240.65839337,0.00028899,2]
[343595737,1732741835227,-391.40411256,0.00028899,2]
[343595738,1732741835236,-500.0,0.00028899,7]
[343595739,1732741835245,-151.0,0.00028899,7]
[343595740,1732741835254,-566.44,0.00028899,3]
[343595741,1732741835264,-566.44,0.00028899,3]
[343595742,1732741835273,-566.44,0.00028899,3]
[343595743,1732741835283,-566.44,0.00028899,3]
[343595744,1732741835292,-566.44,0.00028899,3]
[343595745,1732741835301,-566.44,0.00028899,3]
[343595746,1732741835309,-566.44,0.00028899,3]
[343595747,1732741835320,-566.44,0.00028899,3]
[343595748,1732741835331,-566.44,0.00028899,3]
[343595749,1732741835340,-566.44,0.00028899,3]
[343595750,1732741835349,-566.44,0.00028899,3]
[343595751,1732741835358,-566.44,0.00028899,3]
[343595752,1732741835368,-566.44,0.00028899,3]
[343595753,1732741835377,-566.63440016,0.00028899,3]
[343595754,1732741835387,-90388.96159547,0.000289,2]
[343595755,1732741835452,-9647.8,0.000289,2]
[343595756,1732741835466,-599.99104687,0.000289,2]
[343595757,1732741835479,-1900.9847661,0.000289,2]
[343595758,1732741835490,-17248.54465152,0.000289,2]
[343595759,1732741835503,-38380.32134813,0.000289,2]
[343595777,1732741838365,-873.36402255,0.00026507,2]
[343595778,1732741838375,-873.36402255,0.00027289,2]
[343595779,1732741838386,-63833.39659191,0.000289,2]
[343595780,1732741838396,-151.0,0.000289,14]
[343595781,1732741838406,-151.0,0.000289,16]
[343595782,1732741838415,-151.0,0.000289,16]
[343595783,1732741838425,-151.0,0.000289,7]
[343595784,1732741838434,-223.819147,0.000289,7]
[343595785,1732741838450,-246.989994,0.000289,7]
[343595786,1732741838459,-151.0,0.000289,19]
[343595787,1732741838468,-151.0,0.000289,16]
[343595788,1732741838478,-246.989994,0.000289,7]
[343595789,1732741838487,-151.0,0.000289,7]
[343595790,1732741838498,-151.0,0.000289,7]
[343595791,1732741838508,-151.0,0.000289,7]
[343595792,1732741838517,-151.0,0.000289,7]
[343595793,1732741838526,-706.93813931,0.000289,2]
[343595794,1732741838536,-275.042462,0.000289,7]
[343595795,1732741838546,-275.042462,0.000289,7]
[343595796,1732741838557,-1096.8935235,0.000289,2]
[343595797,1732741838566,-205.149087,0.000289,7]
[343595798,1732741838575,-205.149087,0.000289,7]
[343595799,1732741838584,-170.03900486,0.000289,7]
[343595800,1732741838593,-170.03900486,0.000289,7]
[343595801,1732741838603,-170.03900486,0.000289,7]
[343595802,1732741838613,-170.03900486,0.000289,7]
[343595803,1732741838622,-170.03900486,0.000289,7]
[343595804,1732741838632,-170.03900486,0.000289,7]
[343595805,1732741838641,-170.03,0.000289,7]
[343595806,1732741838651,-162.30995919,0.000289,7]
[343595807,1732741838660,-162.30995919,0.000289,7]
[343595808,1732741838669,-162.30995919,0.000289,7]
[343595809,1732741838679,-162.30995919,0.000289,7]
[343595810,1732741838689,-162.30995919,0.000289,7]
[343595811,1732741838701,-162.30995919,0.000289,7]
[343595812,1732741838713,-162.30995919,0.000289,7]
[343595813,1732741838723,-162.30995919,0.000289,7]
[343595814,1732741838732,-162.30995919,0.000289,7]
[343595815,1732741838741,-162.30995919,0.000289,7]
[343595816,1732741838751,-162.3,0.000289,7]
[343595817,1732741838761,-500.0,0.00028973,5]
[343595818,1732741838770,-161.22614263,0.00028973,5]
[343595819,1732741838779,-500.0,0.00028973,5]
[343595820,1732741838789,-500.0,0.00028973,5]
[343595821,1732741838798,-572.97516046,0.00028999,2]
[343595822,1732741838807,-500.0,0.00028999,2]
[343595823,1732741838816,-177.604046,0.00028999,7]
[343595824,1732741838825,-177.604046,0.00028999,7]
[343595825,1732741838835,-105519.15489753,0.00029,15]
[343595852,1732741840162,-96435.24897834,0.00029,15]
[343596134,1732741845595,-500.0,0.0002772,2]
[343596138,1732741845604,-335.2360706,0.00027773,5]
[343596142,1732741845616,-164.7639294,0.00027773,5]
[343596145,1732741845625,-200.0,0.0002807,2]
[343596150,1732741845662,-673.36402255,0.0002807,2]
[343596152,1732741845671,-500.0,0.00028321,5]
[343596154,1732741845680,-500.0,0.00028973,5]
[343596156,1732741845690,-421.95,0.0002899,10]
[343596158,1732741845701,-3888.05705541,0.00029,15]
[343596220,1732741846268,-48199.0,0.00029,15]
[343597425,1732742132543,50000.0,0.0001,2]
[343597426,1732742490503,178.423356,0.00013973,2]
[343597433,1732742852144,-304.864035,0.00022295,2]
[343597434,1732742852165,-2380.11066255,0.00024167,2]
[343597437,1732742901667,9889.85413686,0.0002,2]
[343597438,1732742911507,288.17590252,0.000176,2]
[343597439,1732742912993,6795.51922676,0.0002,2]
[343597440,1732742921898,58253.01236604,0.00020377,2]
[343597441,1732742922308,4350.79100594,0.0002,2]
[343597442,1732742923846,351.68622588,0.0002,2]
[343597443,1732742927328,81111.69956467,0.000109,2]
[343597494,1732743032391,-519.6073866,0.00023834,2]
[343597496,1732743032401,-300.0,0.00023834,2]
[343597498,1732743032412,-300.0,0.00023834,2]
[343597500,1732743032421,-364.934684,0.00023835,2]
[343597502,1732743032430,-3291.52887593,0.00023835,2]
[343597504,1732743032441,-286.6862773,0.00023835,2]
[343597506,1732743032453,-15571.19634229,0.00023835,2]
[343597511,1732743032489,-2860.8125723,0.00023835,2]
[343597514,1732743032511,-382.82381003,0.00023835,2]
[343597516,1732743032523,-305.9826076,0.00023835,2]
[343597519,1732743032534,-2200.96951455,0.00023835,2]
[343597521,1732743032543,-2674.80661215,0.00024167,2]
[343597523,1732743032553,-500.0,0.00024657,3]
[343597525,1732743032564,-500.0,0.00024657,3]
[343597527,1732743032577,-161.8032792,0.00024736,2]
[343597529,1732743032588,-1036.80467652,0.00024736,2]
[343597531,1732743032598,-592.74,0.00024826,10]
[343597533,1732743032607,-343.02,0.00024826,10]
[343597535,1732743032617,-745.62,0.00024826,3]
[343597537,1732743032626,-541.87,0.00024826,10]
[343597539,1732743032636,-372.81,0.00024826,3]
[343597541,1732743032648,-451.56,0.00024826,10]
[343597543,1732743032657,-500.0,0.00024834,3]
[343597545,1732743032666,-500.0,0.00024835,3]
[343597547,1732743032675,-500.0,0.00024835,3]
[343597549,1732743032685,-500.0,0.00024835,3]
[343597551,1732743032695,-682.8,0.00024835,3]
[343597553,1732743032704,-682.8,0.00024835,3]
[343597555,1732743032713,-682.8,0.00024835,3]
[343597557,1732743032723,-500.0,0.00024835,3]
[343597559,1732743032732,-500.0,0.00024835,3]
[343597561,1732743032742,-258.9250077,0.00024835,3]
[343597563,1732743032752,-500.0,0.00024835,3]
[343597565,1732743032762,-500.0,0.00024835,3]
[343597567,1732743032772,-500.0,0.00024835,3]
[343597569,1732743032781,-745.85,0.00024835,3]
[343597571,1732743032793,-745.85,0.00024835,3]
[343597573,1732743032803,-745.85,0.00024835,3]
[343597575,1732743032813,-500.0,0.00024835,3]
[343597577,1732743032828,-500.0,0.00024835,3]
[343597579,1732743032839,-500.0,0.00024835,3]
[343597581,1732743032849,-500.0,0.00024835,3]
[343597584,1732743032859,-500.0,0.00024835,3]
[343597585,1732743032870,-500.0,0.00024835,3]
[343597588,1732743032880,-1067.81,0.00024835,3]
[343597590,1732743032890,-1067.81,0.00024835,3]
[343597592,1732743032901,-1067.81,0.00024835,3]
[343597594,1732743032912,-500.0,0.00024835,3]
[343597596,1732743032921,-500.0,0.00024835,3]
[343597598,1732743032930,-500.0,0.00024835,3]
[343597600,1732743032941,-500.0,0.00024835,3]
[343597602,1732743032950,-500.0,0.00024835,3]
[343597604,1732743032961,-500.0,0.00024835,3]
[343597606,1732743032972,-500.0,0.00024835,3]
[343597607,1732743032983,-500.0,0.00024835,3]
[343597608,1732743032992,-500.0,0.00024835,3]
[343597609,1732743033003,-1505.61539281,0.00024835,2]
[343597610,1732743033013,-500.0,0.00024836,3]
[343597611,1732743033023,-504.42547694,0.00024836,3]
[343597612,1732743033032,-501.83517268,0.00024836,3]
[343597613,1732743033042,-505.47408052,0.00024836,3]
[343597615,1732743033051,-500.0,0.00024836,3]
[343597616,1732743033060,-500.0,0.00024836,3]
[343597617,1732743033072,-500.0,0.00024836,3]
[343597618,1732743033082,-500.0,0.00024836,3]
[343597620,1732743033091,-500.0,0.00024836,3]
[343597621,1732743033100,-604.38159033,0.00024836,3]
[343597622,1732743033110,-500.0,0.00024836,3]
[343597624,1732743033119,-500.0,0.00024836,3]
[343597625,1732743033129,-509.52645695,0.00024836,3]
[343597626,1732743033138,-500.0,0.00024836,3]
[343597627,1732743033148,-500.0,0.00024836,3]
[343597628,1732743033158,-500.0,0.00024836,3]
[343597629,1732743033168,-500.0,0.00024836,3]
[343597630,1732743033178,-718.4,0.00024836,3]
[343597631,1732743033187,-500.0,0.00024836,3]
[343597632,1732743033197,-545.08,0.00024836,3]
[343597633,1732743033207,-500.0,0.00024836,3]
[343597634,1732743033216,-500.0,0.00024836,3]
[343597635,1732743033225,-500.0,0.00024836,3]
[343597636,1732743033236,-500.0,0.00024836,3]
[343597637,1732743033246,-500.0,0.00024836,3]
[343597638,1732743033255,-500.0,0.00024836,3]
[343597639,1732743033265,-500.0,0.00024836,3]
[343597640,1732743033275,-500.0,0.00024836,3]
[343597641,1732743033284,-500.0,0.00024836,3]
[343597642,1732743033295,-501.71204627,0.00024836,3]
[343597643,1732743033305,-500.0,0.00024836,3]
[343597644,1732743033315,-500.0,0.00024836,3]
[343597645,1732743033327,-71.92022567,0.00024836,3]
[343597739,1732743038800,-500.0,0.00024834,3]
[343597741,1732743038810,-187.66565863,0.00024835,2]
[343597743,1732743038819,-500.0,0.00024835,2]
[343597745,1732743038834,-500.0,0.00024835,2]
[343597747,1732743038843,-500.0,0.00024835,2]
[343597749,1732743038853,-500.0,0.00024835,2]
[343597751,1732743038862,-500.0,0.00024835,2]
[343597753,1732743038873,-339.76033938,0.00024835,2]
[343597755,1732743038883,-500.0,0.00024835,2]
[343597757,1732743038892,-375.03977969,0.00024835,2]
[343597759,1732743038904,-124.96022031,0.00024835,2]
[343597761,1732743038915,-500.0,0.00024835,2]
[343597763,1732743038925,-569.80177443,0.00024835,2]
[343597765,1732743038934,-500.0,0.00024835,2]
[343597767,1732743038944,-500.0,0.00024835,2]
[343597769,1732743038953,-500.0,0.00024835,2]
[343597771,1732743038962,-500.0,0.00024835,2]
[343597773,1732743038971,-170.6570059,0.00024835,2]
[343597775,1732743038980,-500.0,0.00024835,2]
[343597777,1732743038990,-500.0,0.00024835,2]
[343597779,1732743038999,-500.0,0.00024835,2]
[343597781,1732743039009,-500.0,0.00024835,2]
[343597783,1732743039018,-500.0,0.00024835,2]
[343597785,1732743039027,-500.0,0.00024835,3]
[343597787,1732743039037,-500.0,0.00024835,2]
[343597789,1732743039046,-500.0,0.00024835,3]
[343597791,1732743039055,-500.0,0.00024835,3]
[343597793,1732743039064,-500.0,0.00024835,3]
[343597795,1732743039075,-500.0,0.00024835,3]
[343597797,1732743039084,-500.0,0.00024835,3]
[343597799,1732743039093,-500.0,0.00024835,3]
[343597801,1732743039103,-428.07977433,0.00024836,3]
[343597803,1732743039112,-505.12106572,0.00024836,3]
[343597805,1732743039121,-500.0,0.00024836,3]
[343597807,1732743039130,-502.33706688,0.00024836,3]
[343597809,1732743039140,-500.0,0.00024836,3]
[343597811,1732743039149,-503.44647652,0.00024836,3]
[343597813,1732743039158,-500.0,0.00024836,3]
[343597815,1732743039167,-627.28853011,0.00024836,3]
[343597817,1732743039176,-500.0,0.00024836,3]
[343597819,1732743039185,-611.97446235,0.00024836,3]
[343597821,1732743039195,-500.0,0.00024836,3]
[343597823,1732743039205,-135.65331175,0.00024836,3]
[343597825,1732743039217,-364.34668825,0.00024836,3]
[343597827,1732743039227,-455.86774023,0.00024836,3]
[343597945,1732743040330,-44.13225977,0.00024836,3]
[343597947,1732743040339,-505.0777363,0.00024836,3]
[343597949,1732743040348,-500.0,0.00024836,3]
[343597951,1732743040357,-333.29000393,0.00024836,3]
[343597953,1732743040369,-169.4664039,0.00024836,3]
[343597955,1732743040378,-391.51876753,0.00024836,3]
[343597960,1732743040412,-94.18842006,0.00024836,3]
[343597962,1732743040421,-196.76910378,0.00024836,3]
[343598187,1732743043998,-876.3995246,0.00024097,2]
[343598188,1732743044011,-914.31469628,0.00024097,2]
[343598189,1732743044087,-693.56240812,0.00024097,2]
[343598190,1732743044097,-337.49089622,0.00024836,3]
[343598191,1732743044106,-507.71915002,0.00024836,3]
[343598192,1732743044115,-534.26,0.00024836,3]
[343598193,1732743044125,-503.60169838,0.00024836,3]
[343598194,1732743044135,-500.0,0.00024836,3]
[343598195,1732743044145,-500.0,0.00024836,3]
[343598196,1732743044155,-500.0,0.00024836,3]
[343598197,1732743044165,-500.0,0.00024836,3]
[343598198,1732743044177,-500.0,0.00024836,3]
[343598199,1732743044187,-500.0,0.00024836,3]
[343598200,1732743044196,-500.0,0.00024836,3]
[343598201,1732743044207,-500.0,0.00024836,3]
[343598202,1732743044217,-500.39966675,0.00024836,3]
[343598203,1732743044226,-362.49928051,0.00024836,3]
[343598204,1732743044239,-137.50071949,0.00024836,3]
[343598205,1732743044249,-130.99661128,0.00024836,3]
[343598215,1732743046279,-369.00338872,0.00024836,3]
[343598216,1732743046289,-500.0,0.00024836,3]
[343598217,1732743046299,-500.0,0.00024836,3]
[343598218,1732743046309,-500.0,0.00024836,3]
[343598219,1732743046319,-107.91926501,0.00024836,3]
[343598221,1732743194313,175.872955,0.00013973,2]
[343598223,1732743881268,175.872955,0.00013973,2]
[343598224,1732744051271,-1318.64095654,0.0002321,2]
[343598225,1732744051294,-300.0,0.00023444,2]
[343598226,1732744051319,-300.0,0.00023444,2]
[343598227,1732744051340,-11111.04806353,0.00023445,2]
[343598231,1732744152140,-300.0,0.00023444,2]
[343598232,1732744152162,-300.0,0.00023444,2]
[343598233,1732744152188,-13788.95193647,0.00023445,2]
[343598234,1732744152209,-182.467342,0.00023676,2]
[343598235,1732744152232,-162.26651899,0.00023733,2]
[343598236,1732744152254,-1658.153834,0.00023741,2]
[343598237,1732744152274,-3030.6053935,0.00023811,2]
[343598246,1732744197109,170.871729,0.00023406,2]
[343598282,1732744232836,-559.21,0.00024647,3]
[343598283,1732744232846,-279.61,0.00024647,3]
[343598284,1732744232856,-838.85,0.00024647,3]
[343598285,1732744232865,-300.0,0.00024655,2]
[343598286,1732744232874,-300.0,0.00024655,2]
[343598287,1732744232884,-618.86686383,0.00024656,2]
[343598288,1732744232893,-500.0,0.00024656,2]
[343598289,1732744232904,-241.18411177,0.00024656,2]
[343598290,1732744232914,-361.20225195,0.00024656,2]
[343598291,1732744232925,-1003.74359521,0.00024657,2]
[343598292,1732744232935,-508.4229907,0.00024657,3]
[343598293,1732744232945,-577.72571443,0.00024657,3]
[343598294,1732744232956,-500.0,0.00024657,3]
[343598295,1732744232966,-506.25244076,0.00024657,3]
[343598296,1732744232976,-500.0,0.00024657,3]
[343598297,1732744232985,-500.0,0.00024657,3]
[343598298,1732744232996,-508.59796121,0.00024657,3]
[343598299,1732744233006,-500.0,0.00024657,3]
[343598300,1732744233015,-143.91866845,0.00024657,3]
[343598301,1732744233056,-356.08133155,0.00024657,3]
[343598302,1732744233066,-500.0,0.00024657,3]
[343598303,1732744233075,-500.0,0.00024657,3]
[343598304,1732744233085,-307.0590448,0.00024657,3]
[343598305,1732744233094,-500.0,0.00024657,3]
[343598306,1732744233105,-500.0,0.00024657,3]
[343598307,1732744233117,-500.0,0.00024657,3]
[343598308,1732744233133,-500.0,0.00024657,3]
[343598309,1732744233143,-500.0,0.00024657,3]
[343598310,1732744233152,-500.0,0.00024657,3]
[343598311,1732744233162,-500.0,0.00024657,3]
[343598312,1732744233171,-502.31614398,0.00024657,3]
[343598313,1732744233182,-500.0,0.00024657,3]
[343598314,1732744233191,-500.21676718,0.00024657,3]
[343598315,1732744233203,-500.0,0.00024657,3]
[343598316,1732744233214,-500.0,0.00024657,3]
[343598317,1732744233223,-500.0,0.00024657,3]
[343598318,1732744233233,-500.0,0.00024657,3]
[343598319,1732744233242,-578.30104402,0.00024657,3]
[343598320,1732744233252,-380.62566847,0.00024657,3]
[343598351,1732744238677,-119.37433153,0.00024657,3]
[343598353,1732744238687,-500.0,0.00024657,3]
[343598355,1732744238697,-500.0,0.00024657,3]
[343598357,1732744238707,-503.18215782,0.00024657,3]
[343598359,1732744238716,-500.0,0.00024657,3]
[343598361,1732744238726,-500.0,0.00024657,3]
[343598363,1732744238735,-500.0,0.00024657,3]
[343598365,1732744238744,-501.69515749,0.00024657,3]
[343598367,1732744238753,-500.0,0.00024657,3]
[343598369,1732744238763,-500.0,0.00024657,3]
[343598371,1732744238773,-503.34560249,0.00024657,3]
[343598373,1732744238786,-500.0,0.00024657,3]
[343598375,1732744238796,-500.0,0.00024657,3]
[343598377,1732744238805,-500.0,0.00024657,3]
[343598379,1732744238814,-500.0,0.00024657,3]
[343598381,1732744238824,-500.0,0.00024657,3]
[343598383,1732744238834,-500.0,0.00024657,3]
[343598386,1732744238846,-640.92,0.00024657,3]
[343598387,1732744238856,-500.0,0.00024657,3]
[343598390,1732744238869,-500.0,0.00024657,3]
[343598392,1732744238879,-500.0,0.00024657,3]
[343598394,1732744238889,-500.0,0.00024657,3]
[343598396,1732744238898,-214.90108597,0.00024657,3]
[343598398,1732744238908,-582.55039606,0.00024657,3]
[343598400,1732744238918,-500.0,0.00024657,3]
[343598402,1732744238927,-97.94807774,0.00024657,3]
[343598978,1732744244844,-402.05192226,0.00024657,3]
[343598981,1732744244878,-500.0,0.00024657,3]
[343598983,1732744244888,-500.0,0.00024657,3]
[343598984,1732744244897,-500.0,0.00024657,3]
[343598987,1732744244914,-500.0,0.00024657,3]
[343598990,1732744244929,-500.0,0.00024657,3]
[343598992,1732744244939,-500.0,0.00024657,3]
[343598994,1732744244949,-500.0,0.00024657,3]
[343598996,1732744244959,-500.0,0.00024657,3]
[343598998,1732744244970,-500.0,0.00024657,3]
[343599001,1732744244981,-455.75391056,0.00024657,3]
[343600087,1732744256118,5000.0,0.00024401,2]
[343600258,1732744258122,2771.3920218,0.0002379,2]
[343600859,1732744264704,1012.45497412,0.00024401,2]
[343600928,1732744273387,5000.0,0.00024401,2]
[343600929,1732744275025,3605.59940086,0.00024266,2]
[343600930,1732744546051,203.0,0.00022,2]
[343600931,1732744641590,327.575112,0.00013973,2]
[343600932,1732744642035,327.575112,0.00020447,2]
[343600933,1732744646117,294.79291097,0.0002203,2]
[343600934,1732744669469,5000.0,0.0002203,2]
[343600935,1732744685919,610.743018,0.0002203,2]
[343600936,1732744731375,3325.4155865,0.00021862,2]
[343600937,1732744827058,132191.35783966,0.0001,2]
[343600938,1732744827086,467808.64216034,0.0001,2]
[343600939,1732744846190,190.0,0.00022,2]
[343600940,1732744912574,169.725937,0.00021381,2]
[343600941,1732744930867,4121.02837218,0.0002,2]
[343600942,1732744961538,263.1876127,0.00021654,2]
[343600949,1732744996812,1225.0526919,0.00021826,2]
[343600950,1732745031909,159.640276,0.00022002,2]
[343600951,1732745038456,10151.6727574,0.00021628,2]
[343600952,1732745039792,159.640276,0.00022002,2]
[343600953,1732745116106,292.63305733,0.00022002,2]
[343600965,1732745187112,738.857856,0.00021547,2]
[343600966,1732745241157,-190.0,0.00022192,2]
[343600967,1732745241193,-10.34524491,0.00022304,2]
[343600968,1732745242222,-496.45730521,0.00022304,2]
[343600969,1732745242244,-7320.496814,0.00022304,2]
[343600970,1732745242266,-679.25,0.00022532,3]
[343600971,1732745242288,-300.0,0.00022542,2]
[343600972,1732745242309,-300.0,0.00022542,2]
[343600973,1732745242329,-26662.94872313,0.00022542,2]
[343600981,1732745309362,303.764448,0.00013973,2]
[343600982,1732745309582,303.764448,0.00020447,2]
[343600985,1732745355082,-521.50155189,0.00022443,2]
[343600988,1732745360124,-825.45219007,0.00022443,2]
[343600989,1732745360147,-3146.7435202,0.00022443,2]
[343600990,1732745360168,-339.63,0.00022532,3]
[343600991,1732745360194,-169.81,0.00022532,3]
[343600992,1732745360216,-509.47,0.00022532,3]
[343600993,1732745360239,-300.0,0.0002254,2]
[343600994,1732745360263,-300.0,0.0002254,2]
[343600995,1732745360288,-500.0,0.0002254,2]
[343600996,1732745360309,-500.0,0.0002254,2]
[343600997,1732745360329,-513.52597429,0.0002254,2]
[343600998,1732745360351,-500.0,0.0002254,2]
[343600999,1732745360372,-500.0,0.0002254,2]
[343601000,1732745360394,-500.0,0.0002254,2]
[343601001,1732745360418,-500.0,0.0002254,2]
[343601002,1732745360440,-500.0,0.0002254,2]
[343601003,1732745360461,-500.0,0.0002254,2]
[343601004,1732745360484,-500.0,0.0002254,2]
[343601005,1732745360507,-500.0,0.0002254,2]
[343601006,1732745360531,-500.0,0.0002254,2]
[343601007,1732745360553,-500.0,0.0002254,2]
[343601008,1732745360578,-500.0,0.0002254,2]
[343601009,1732745360600,-500.0,0.0002254,2]
[343601010,1732745360625,-500.0,0.0002254,2]
[343601011,1732745360648,-500.0,0.0002254,2]
[343601012,1732745360672,-500.0,0.0002254,2]
[343601013,1732745360693,-500.0,0.0002254,2]
[343601014,1732745360715,-500.0,0.0002254,2]
[343601015,1732745360737,-500.0,0.0002254,2]
[343601016,1732745360763,-500.0,0.0002254,2]
[343601017,1732745360865,-500.0,0.0002254,2]
[343601018,1732745360892,-500.0,0.0002254,2]
[343601019,1732745360914,-500.0,0.0002254,2]
[343601020,1732745360937,-500.0,0.0002254,2]
[343601021,1732745360959,-500.0,0.0002254,2]
[343601022,1732745360982,-500.0,0.0002254,2]
[343601023,1732745361004,-500.0,0.0002254,2]
[343601024,1732745361029,-500.0,0.0002254,2]
[343601025,1732745361051,-500.0,0.0002254,2]
[343601026,1732745361072,-500.0,0.0002254,2]
[343601027,1732745361094,-500.0,0.0002254,2]
[343601028,1732745361116,-171.88571368,0.0002254,2]
[343601029,1732745361138,-500.0,0.0002254,2]
[343601030,1732745361160,-386.80287618,0.0002254,2]
[343601031,1732745361181,-500.0,0.0002254,2]
[343601032,1732745361203,-500.0,0.0002254,2]
[343601033,1732745361223,-500.0,0.0002254,2]
[343601034,1732745361244,-500.0,0.0002254,2]
[343601035,1732745361269,-500.0,0.0002254,2]
[343601036,1732745361290,-568.82847856,0.0002254,2]
[343601037,1732745361311,-500.0,0.0002254,2]
[343601038,1732745361332,-500.0,0.0002254,2]
[343601039,1732745361352,-500.0,0.0002254,2]
[343601040,1732745361373,-500.0,0.0002254,2]
[343601041,1732745361393,-500.0,0.0002254,2]
[343601042,1732745361414,-289985.0,0.00022542,2]
[343601043,1732745361436,-360.8584462,0.00022543,2]
[343601044,1732745361457,-406.65988018,0.00022543,2]
[343601045,1732745361477,-500.0,0.00022543,2]
[343601046,1732745361497,-415.69274323,0.00022543,2]
[343601047,1732745361520,-500.0,0.00022543,2]
[343601048,1732745361541,-586.75758484,0.00022543,2]
[343601049,1732745361562,-200.15710562,0.00022543,2]
[343601050,1732745361588,-500.0,0.00022543,2]
[343601051,1732745361608,-160.72455937,0.00022543,2]
[343601052,1732745361630,-285.31781609,0.00022543,2]
[343601053,1732745361651,-184.31940411,0.00022543,2]
[343601054,1732745361673,-917.43822809,0.00022545,2]
[343601055,1732745361694,-501.20262715,0.00022573,2]
[343601056,1732745361714,-500.0,0.00022573,2]
[343601057,1732745361734,-619.55585068,0.00022573,2]
[343601058,1732745361754,-497.99091974,0.00022573,2]
[343601059,1732745361847,-500.0,0.00022573,2]
[343601060,1732745361868,-500.0,0.00022573,2]
[343601061,1732745361888,-313.03818842,0.00022573,2]
[343601062,1732745361908,-152.0,0.00022618,2]
[343601063,1732745361929,-438.51725647,0.00022657,2]
[343601064,1732745361949,-501.57384118,0.00022665,2]
[343601065,1732745361968,-202.22230133,0.00022673,2]
[343601066,1732745361988,-500.0,0.00022673,2]
[343601067,1732745362008,-500.0,0.00022673,2]
[343601118,1732745432799,-342.77523027,0.0002277,2]
[343601120,1732745432809,-151.0,0.000228,9]
[343601122,1732745432819,-1389.37248461,0.00022972,2]
[343601124,1732745432831,-1757.37103559,0.00022972,2]
[343601126,1732745432839,-151.0,0.00023,10]
[343601128,1732745432849,-198.0,0.00023,2]
[343601130,1732745432858,-190.0,0.00023014,2]
[343601132,1732745432867,-151.0,0.000231,6]
[343601134,1732745432877,-169.484134,0.0002318,2]
[343601136,1732745432886,-121.5063194,0.0002322,2]
[343601140,1732745432913,-178.4936806,0.0002322,2]
[343601142,1732745432923,-300.0,0.0002322,2]
[343601144,1732745432932,-1000.0,0.00023221,2]
[343601146,1732745432942,-565.69376315,0.00023221,2]
[343601148,1732745432951,-151.0,0.000233,9]
[343601150,1732745432960,-1346.95374192,0.00023365,2]
[343601152,1732745432969,-198.0,0.00023374,2]
[343601154,1732745432979,-24900.0,0.00023487,2]
[343601156,1732745432988,-151.0,0.000235,8]
[343601158,1732745432997,-3146.7435202,0.000235,2]
[343601160,1732745433007,-151.0,0.000237,9]
[343601162,1732745433016,-299.106282,0.000237,6]
[343601164,1732745433025,-151.0,0.000239,6]
[343601166,1732745433035,-151.0,0.000239,7]
[343601168,1732745433044,-8212.58572746,0.00023938,2]
[343601170,1732745433053,-898.52341106,0.00023938,2]
[343601713,1732745438852,-294.45546034,0.00023938,2]
[343601715,1732745438863,-3146.7435202,0.00024029,2]
[343601717,1732745438874,-151.0,0.000241,5]
[343601720,1732745438884,-151.0,0.000241,10]
[343601722,1732745438894,-195.0,0.00024164,2]